bitfinex-derivatives/quotes_BTCF0:USTF0_20241227
["timestamp","ask_amount","ask_price","bid_price","bid_amount"]
[1735321049879,0.63818038,94075.0,94061.0,0.3608]
[1735321050086,0.053237,94062.0,94061.0,0.3608]
[1735321050690,0.053242,94054.0,94053.0,0.3698]
[1735321051073,0.05325,94039.0,94038.0,0.00159536]
[1735321051473,0.414042,94054.0,94038.0,0.00159536]
[1735321051474,0.01019117,94054.0,94038.0,0.00159536]
[1735321051677,0.053246,94047.0,94038.0,0.00159536]
[1735321051882,0.053239,94059.0,94053.0,0.005]
[1735321052183,0.053239,94059.0,94058.0,0.3608]
[1735321053087,0.054239,94059.0,94058.0,0.3608]
[1735321054375,0.054239,94059.0,94058.0,0.3628]
[1735321054590,0.00999064,94059.0,94038.0,0.00159536]
[1735321054894,0.053253,94034.0,94032.0,0.3608]
[1735321055684,0.0828,94049.0,94018.0,0.3608]
[1735321055685,0.52380729,94042.0,94018.0,0.3608]
[1735321055982,0.05326,94023.0,94018.0,0.3608]
[1735321056486,0.16300729,94040.0,94018.0,0.3608]
[1735321056785,0.05326,94023.0,94018.0,0.3608]
[1735321056985,0.053261,94021.0,94018.0,0.3608]
[1735321057391,0.16300729,94040.0,94018.0,0.3608]
[1735321057392,0.053262,94019.0,94018.0,0.3608]
[1735321058394,0.16400729,94040.0,94018.0,0.3608]
[1735321058588,0.053257,94028.0,94027.0,0.3608]
[1735321059489,0.16400729,94040.0,94018.0,0.3688]
[1735321059677,0.053262,94019.0,94018.0,0.008]
[1735321059884,0.3608,94042.0,94018.0,0.014]
[1735321060079,0.16300729,94050.0,94033.0,0.3608]
[1735321060284,0.053253,94034.0,94033.0,0.3608]
[1735321060988,0.053253,94034.0,94027.0,0.002]
[1735321061190,0.053262,94019.0,94018.0,0.007]
[1735321061393,0.05327,94005.0,93995.0,0.3608]
[1735321061585,0.053272,94001.0,93995.0,0.3608]
[1735321063195,0.001,94001.0,94000.0,0.107]
[1735321063988,0.001,94001.0,94000.0,0.111]
[1735321064993,0.05594092,94001.0,94000.0,0.111]
[1735321065187,0.3608,94019.0,94000.0,0.111]
[1735321065188,0.053267,94011.0,94000.0,0.111]
[1735321065388,0.053267,94011.0,94010.0,0.3608]
[1735321066893,0.053267,94011.0,94010.0,0.3648]
[1735321067097,0.054267,94011.0,94010.0,0.3738]
[1735321067688,0.054267,94011.0,94010.0,0.3728]
[1735321068094,0.415067,94011.0,94000.0,0.1]
[1735321068302,0.053272,94001.0,94000.0,0.1]
[1735321070100,0.053272,94001.0,94000.0,0.113]
[1735321073905,0.053272,94001.0,93987.0,0.3608]
[1735321074100,0.05328,93988.0,93987.0,0.3608]
[1735321075297,0.05328,93988.0,93987.0,0.3668]
[1735321075707,0.05428,93988.0,93987.0,0.3718]
[1735321076502,0.05528,93988.0,93987.0,0.3718]
[1735321077204,0.05528,93988.0,93972.0,0.19082545]
[1735321077205,0.053288,93973.0,93972.0,0.19082545]
[1735321077500,0.32907911,93973.0,93972.0,0.19082545]
[1735321077706,0.32907911,93973.0,93968.0,0.25443394]
[1735321077900,0.0772,93972.0,93968.0,0.25443394]
[1735321078100,0.053299,93954.0,93953.0,0.01028743]
[1735321078302,0.053302,93949.0,93947.0,0.0785]
[1735321078696,0.053302,93949.0,93945.0,0.25443394]
[1735321078915,0.047302,93949.0,93945.0,0.25443394]
[1735321079401,0.047302,93949.0,93938.0,0.1533]
[1735321079991,0.048302,93949.0,93948.0,0.3668]
[1735321080192,0.049302,93949.0,93948.0,0.3728]
[1735321081306,0.053294,93965.0,93956.0,0.053298]
[1735321081601,0.053294,93965.0,93959.0,0.3608]
[1735321081803,0.053294,93965.0,93960.0,1.5]
[1735321081992,0.053295,93962.0,93960.0,1.5]
[1735321082199,0.053296,93960.0,93959.0,0.3608]
[1735321082900,0.053296,93960.0,93959.0,0.005]
[1735321083110,0.053302,93949.0,93948.0,0.3608]
[1735321083496,0.053308,93939.0,93938.0,0.33203394]
[1735321083705,0.053308,93939.0,93937.0,0.3608]
[1735321085494,0.054308,93939.0,93937.0,0.3648]
[1735321085692,0.054308,93939.0,93937.0,0.005]
[1735321085693,0.055308,93939.0,93937.0,0.005]
[1735321085907,0.053319,93920.0,93917.0,0.25443394]
[1735321087612,0.053319,93920.0,93916.0,0.3608]
[1735321088003,0.054319,93920.0,93916.0,0.3608]
[1735321089118,0.055319,93920.0,93919.0,1.50159701]
[1735321089813,0.00813111,93930.0,93919.0,0.00159701]
[1735321090111,0.16300729,93930.0,93929.0,0.3608]
[1735321090411,0.053319,93920.0,93919.0,0.00159701]
[1735321090610,0.08893858,93938.0,93919.0,0.00159701]
[1735321090812,0.053311,93934.0,93933.0,0.3608]
[1735321091012,0.053316,93925.0,93924.0,0.3608]
[1735321091217,0.053316,93925.0,93919.0,0.00159701]
[1735321091218,0.053319,93920.0,93919.0,0.00159701]
[1735321092001,0.0792,93929.0,93916.0,0.3608]
[1735321092204,0.05332,93917.0,93916.0,0.3608]
[1735321092909,0.002,93920.0,93916.0,0.3608]
[1735321093209,0.00813858,93938.0,93917.0,0.1614]
[1735321093406,0.05332,93918.0,93916.0,0.3608]
[1735321093611,0.001,93917.0,93916.0,0.3608]
[1735321094009,0.001,93917.0,93916.0,0.3618]
[1735321094010,0.002,93917.0,93916.0,0.3618]
[1735321095124,0.001,93917.0,93916.0,0.3618]
[1735321095307,0.0796,93917.0,93916.0,0.3618]
[1735321095717,0.0806,93917.0,93916.0,0.3618]
[1735321096215,0.0806,93917.0,93894.0,0.00159782]
[1735321096216,0.053321,93916.0,93909.0,0.3608]
[1735321096413,0.053329,93901.0,93897.0,0.3608]
[1735321096714,0.053333,93895.0,93894.0,0.36239782]
[1735321096909,0.05334,93883.0,93882.0,0.25443394]
[1735321097310,0.05134,93883.0,93882.0,0.25443394]
[1735321097910,0.05134,93883.0,93877.0,0.3608]
[1735321098210,0.053334,93894.0,93882.0,0.002]
[1735321098404,0.053334,93894.0,93893.0,0.3608]
[1735321099614,0.054334,93894.0,93893.0,0.3608]
[1735321100723,0.055334,93894.0,93893.0,0.3608]
[1735321101021,0.055334,93894.0,93893.0,0.7216]
[1735321101624,0.055334,93894.0,93882.0,0.25443394]
[1735321101625,0.05334,93883.0,93882.0,0.25443394]
[1735321102728,0.053343,93878.0,93877.0,0.3608]
[1735321104532,0.054343,93878.0,93877.0,0.3608]
[1735321105327,0.055343,93878.0,93877.0,0.3608]
[1735321109225,0.128529,93902.0,93877.0,0.3608]
[1735321109226,0.053331,93899.0,93890.0,0.053335]
[1735321109427,0.01016164,93911.0,93898.0,0.3608]
[1735321109428,0.053329,93902.0,93898.0,0.3608]
[1735321109733,0.16300729,93910.0,93885.0,0.3608]
[1735321109934,0.053331,93899.0,93898.0,0.3608]
[1735321110118,0.00159821,93911.0,93898.0,0.3608]
[1735321110321,0.05492221,93911.0,93910.0,0.3608]
[1735321110536,0.00159821,93911.0,93906.0,0.3608]
[1735321110720,0.053326,93907.0,93906.0,0.3608]
[1735321112519,0.054326,93907.0,93906.0,0.3608]
[1735321113124,0.055326,93907.0,93906.0,0.3608]
[1735321115125,0.055326,93907.0,93905.0,0.25476954]
[1735321115423,0.05333,93900.0,93899.0,1e-08]
[1735321115640,0.053334,93893.0,93892.0,0.38148829]
[1735321115826,0.05333,93900.0,93888.0,0.3608]
[1735321115827,0.053336,93889.0,93888.0,0.3608]
[1735321117041,0.053332,93898.0,93888.0,0.3608]
[1735321117335,0.053331,93898.0,93897.0,0.3608]
[1735321118235,0.129927,93906.0,93897.0,0.3608]
[1735321118427,0.053327,93906.0,93899.0,0.05333]
[1735321118626,0.053327,93906.0,93897.0,0.3608]
[1735321118627,0.053329,93903.0,93897.0,0.3608]
[1735321119235,0.16300729,93910.0,93897.0,0.3608]
[1735321119425,0.05333,93902.0,93897.0,0.3608]
[1735321119621,0.001,93898.0,93897.0,0.3608]
[1735321120043,0.001,93898.0,93897.0,0.36936918]
[1735321120539,0.001,93898.0,93897.0,0.37036918]
[1735321121140,0.05333,93901.0,93897.0,0.37036918]
[1735321121928,0.001,93898.0,93897.0,0.37036918]
[1735321122624,0.001,93901.0,93897.0,0.37036918]
[1735321122936,0.001,93901.0,93897.0,0.42370118]
[1735321123137,0.3608,93917.0,93897.0,0.67036918]
[1735321123439,0.05332,93919.0,93910.0,0.414124]
[1735321123636,0.05332,93919.0,93918.0,0.3608]
[1735321123830,0.2530677,93926.0,93918.0,0.3608]
[1735321124136,0.2530677,93926.0,93921.0,0.3608]
[1735321124834,0.053312,93932.0,93921.0,0.3608]
[1735321125037,0.053312,93932.0,93931.0,0.3608]
[1735321126141,0.056312,93932.0,93931.0,0.3608]
[1735321126838,0.003,93932.0,93931.0,0.3608]
[1735321127229,0.2201,94044.0,93941.0,0.053307]
[1735321127230,0.31621986,93960.0,93941.0,0.053307]
[1735321127433,0.053297,93959.0,93956.0,0.3608]
[1735321127628,0.31621986,93960.0,93956.0,0.3608]
[1735321127828,0.053297,93958.0,93956.0,0.3608]
[1735321129526,0.012,93960.0,93956.0,0.3608]
[1735321129931,0.003,93958.0,93956.0,0.3608]
[1735321130335,0.009,93958.0,93956.0,0.36904384]
[1735321130837,0.006,93958.0,93956.0,0.36904384]
[1735321131031,0.009,93960.0,93956.0,0.36904384]
[1735321131232,0.062296,93960.0,93956.0,0.36904384]
[1735321131453,0.053297,93958.0,93956.0,0.3608]
[1735321132030,0.059297,93958.0,93956.0,0.3608]
[1735321132632,0.053312,93933.0,93931.0,0.3608]
[1735321133741,0.054312,93933.0,93931.0,0.3618]
[1735321134536,0.054312,93933.0,93931.0,0.3608]
[1735321134728,0.054312,93933.0,93931.0,0.3618]
[1735321136247,0.053315,93927.0,93926.0,0.3608]
[1735321137839,0.06186632,93927.0,93926.0,0.3618]
[1735321139148,0.05331,93935.0,93926.0,0.415115]
[1735321139346,0.05331,93935.0,93926.0,0.414115]
[1735321139537,0.05331,93935.0,93934.0,0.3608]
[1735321141046,0.05431,93935.0,93934.0,0.3608]
[1735321141852,0.001,93935.0,93934.0,0.3608]
[1735321142746,0.24856652,93940.0,93939.0,0.053308]
[1735321142949,0.03864092,93952.0,93939.0,0.3608]
[1735321143153,0.03864092,93952.0,93951.0,0.3608]
[1735321143446,0.053289,93973.0,93951.0,0.3608]
[1735321143751,0.053292,93968.0,93966.0,0.3608]
[1735321146550,0.00659727,93967.0,93966.0,0.3608]
[1735321146851,0.01559727,93967.0,93966.0,0.3608]
[1735321147446,0.014,93967.0,93966.0,0.414093]
[1735321148144,0.0778,93999.0,93967.0,0.00159649]
[1735321148347,0.0778,93999.0,93983.0,0.3608]
[1735321148543,0.3608,93996.0,93983.0,0.3608]
[1735321148737,0.053283,93984.0,93983.0,0.3608]
[1735321148948,0.053278,93993.0,93983.0,0.3608]
[1735321149147,0.3608,93996.0,93983.0,0.3608]
[1735321149148,0.053281,93988.0,93983.0,0.3608]
[1735321149351,0.3608,93996.0,93967.0,0.00159649]
[1735321149352,0.053285,93981.0,93967.0,0.00159649]
[1735321149550,0.24170729,93980.0,93967.0,0.00159649]
[1735321149851,0.3608,93970.0,93940.0,0.3608]
[1735321150052,0.16300729,93960.0,93956.0,0.3608]
[1735321150444,0.053298,93957.0,93940.0,0.3608]
[1735321150644,0.16300729,93950.0,93948.0,0.3608]
[1735321150845,0.131999,93956.0,93948.0,0.3608]
[1735321151252,0.0787,93956.0,93948.0,0.3608]
[1735321151443,0.0533,93954.0,93948.0,0.3608]
[1735321151647,0.0787,93956.0,93948.0,0.3608]
[1735321151850,0.053302,93950.0,93948.0,0.3608]
[1735321152148,0.0787,93956.0,93920.0,0.16300729]
[1735321152149,0.053301,93952.0,93929.0,0.414113]
[1735321152447,0.053305,93945.0,93929.0,0.414113]
[1735321152643,0.053306,93944.0,93929.0,0.414113]
[1735321152839,0.053306,93944.0,93929.0,0.3608]
[1735321153246,0.053306,93944.0,93932.0,0.053311]
[1735321153442,0.0794,93949.0,93939.0,0.3608]
[1735321153638,0.053307,93942.0,93939.0,0.3608]
[1735321154048,0.0794,93949.0,93939.0,0.3608]
[1735321154247,0.08752459,93956.0,93939.0,0.3608]
[1735321154248,0.00882459,93956.0,93948.0,0.3608]
[1735321154457,0.16300729,93970.0,93950.0,0.053302]
[1735321154458,0.60270729,93970.0,93950.0,0.053302]
[1735321154755,0.24190729,93970.0,93965.0,0.3608]
[1735321154959,0.0789,93970.0,93968.0,0.053291]
[1735321155657,0.0789,93970.0,93960.0,0.053296]
[1735321155841,0.24190729,93970.0,93967.0,0.053292]
[1735321156045,0.1551,93982.0,93969.0,0.053291]
[1735321156046,0.16300729,93980.0,93969.0,0.053291]
[1735321156345,0.16300729,93980.0,93975.0,0.053287]
[1735321156850,0.16300729,93980.0,93974.0,0.3608]
[1735321157053,0.16300729,93980.0,93978.0,0.053286]
[1735321157258,0.009,93980.0,93978.0,0.053286]
[1735321157449,0.015,93980.0,93978.0,0.053286]
[1735321157948,0.006,93980.0,93975.0,0.002]
[1735321158742,0.0777,93981.0,93975.0,0.001]
[1735321159054,0.053285,93980.0,93975.0,0.001]
[1735321159257,0.053285,93980.0,93974.0,0.3608]
[1735321159456,0.053285,93980.0,93978.0,0.001]
[1735321159960,0.053285,93980.0,93975.0,0.001]
[1735321160263,0.053286,93979.0,93975.0,0.001]
[1735321160448,0.053286,93979.0,93978.0,0.001]
[1735321161853,0.053293,93966.0,93964.0,0.3608]
[1735321162156,0.3608,93971.0,93947.0,0.3608]
[1735321162351,0.053302,93950.0,93947.0,0.3608]
[1735321162554,0.075,93949.0,93937.0,0.3608]
[1735321162952,0.075,93949.0,93938.0,0.053309]
[1735321163153,0.075,93949.0,93940.0,0.053307]
[1735321163352,0.075,93949.0,93948.0,0.01059657]
[1735321163548,0.075,93949.0,93948.0,0.01459657]
[1735321164047,0.076,93949.0,93948.0,0.01459657]
[1735321164563,0.08486891,93949.0,93948.0,0.01459657]
[1735321165060,0.076,93949.0,93948.0,0.01459657]
[1735321165361,0.001,93949.0,93948.0,0.06789957]
[1735321166062,0.21626429,94030.0,94001.0,0.41990324]
[1735321166356,0.053265,94015.0,94010.0,0.3608]
[1735321166561,0.053262,94023.0,94010.0,0.3608]
[1735321166863,0.3608,94020.0,94006.0,0.3608]
[1735321167155,0.053276,93997.0,93992.0,0.3608]
[1735321167361,0.0786,93996.0,93992.0,0.3608]
[1735321167952,0.0786,93996.0,93982.0,0.414084]
[1735321168364,0.0786,93996.0,93990.0,0.3608]
[1735321169551,0.05328,93991.0,93990.0,0.002]
[1735321169759,0.053284,93984.0,93972.0,0.3608]
[1735321170057,0.053286,93980.0,93972.0,0.3608]
[1735321172057,0.06669159,93980.0,93972.0,0.3608]
[1735321172254,0.06669159,93980.0,93979.0,0.00259632]
[1735321172767,0.06669159,93980.0,93979.0,0.00159632]
[1735321172768,0.07571755,93980.0,93979.0,0.00159632]
[1735321172962,0.07571755,93980.0,93972.0,0.3608]
[1735321173161,0.01340559,93979.0,93972.0,0.3608]
[1735321173470,0.01340559,93978.0,93974.0,0.05329]
[1735321173961,0.01340559,93977.0,93974.0,0.05329]
[1735321174261,0.01340559,93977.0,93962.0,0.3608]
[1735321174262,0.053291,93973.0,93962.0,0.3608]
[1735321174467,0.053297,93963.0,93962.0,0.3608]
[1735321174767,0.06670259,93963.0,93962.0,0.3608]
[1735321175759,0.06670259,93963.0,93962.0,0.3618]
[1735321175959,0.06670259,93963.0,93962.0,0.001]
[1735321176163,0.06670259,93963.0,93962.0,0.002]
[1735321176359,0.01340559,93963.0,93962.0,0.001]
[1735321176566,0.01140559,93963.0,93962.0,0.002]
[1735321176761,0.414086,93986.0,93962.0,0.002]
[1735321176966,0.414086,93986.0,93977.0,0.3608]
[1735321177269,0.414086,93986.0,93977.0,1.8608]
[1735321177465,0.414086,93986.0,93977.0,0.3608]
[1735321178061,0.053281,93994.0,93985.0,0.3608]
[1735321178262,0.053281,93994.0,93993.0,0.3608]
[1735321179159,0.053276,94003.0,93993.0,0.3608]
[1735321179859,0.5253673,94010.0,93993.0,0.3638]
[1735321180061,0.3608,94010.0,93993.0,0.3638]
[1735321180270,0.3608,94010.0,94003.0,0.3608]
[1735321180473,0.3608,94010.0,94008.0,0.053273]
[1735321180672,0.00311623,94022.0,94004.0,0.3608]
[1735321180874,0.00159623,94022.0,94016.0,0.3608]
[1735321181472,0.053264,94024.0,94016.0,0.3608]
[1735321182071,0.053264,94024.0,94016.0,0.414068]
[1735321182664,0.3608,94034.0,94016.0,0.3608]
[1735321182866,0.3608,94034.0,94032.0,0.053259]
[1735321183177,0.053254,94042.0,94033.0,0.3608]
[1735321183768,0.053255,94041.0,94033.0,0.3608]
[1735321184875,0.001,94034.0,94033.0,0.3608]
[1735321185179,0.001,94034.0,94033.0,0.66163094]
[1735321185879,0.053255,94041.0,94033.0,0.66563094]
[1735321186178,0.053255,94040.0,94033.0,0.66563094]
[1735321186379,0.053256,94038.0,94033.0,0.66163094]
[1735321186679,0.053256,94038.0,94033.0,0.66763094]
[1735321188081,0.053256,94038.0,94033.0,0.63431327]
[1735321188879,0.00896579,94048.0,94033.0,0.63431327]
[1735321188880,0.053253,94044.0,94036.0,0.053257]
[1735321189483,0.053253,94044.0,94037.0,0.053257]
[1735321189676,0.053258,94035.0,94033.0,0.006]
[1735321189881,0.053263,94026.0,94019.0,0.3608]
[1735321190280,0.3608,94034.0,94019.0,0.3608]
[1735321190481,0.053266,94022.0,94019.0,0.3608]
[1735321191282,0.053266,94021.0,94019.0,0.3608]
[1735321191679,0.053266,94021.0,94019.0,0.002]
[1735321191874,0.3608,94025.0,94019.0,0.004]
[1735321192082,0.053279,93998.0,93992.0,0.3608]
[1735321192283,0.053279,93998.0,93997.0,0.01065954]
[1735321192678,0.3608,94016.0,93997.0,0.01065954]
[1735321192880,0.3608,94016.0,94004.0,0.053276]
[1735321193074,0.053272,94010.0,94005.0,0.053275]
[1735321193277,0.3608,94016.0,94010.0,0.053272]
[1735321194089,0.053273,94010.0,94002.0,0.053277]
[1735321194295,0.053273,94010.0,94004.0,0.053276]
[1735321194983,0.053273,94010.0,94001.0,0.3608]
[1735321195179,0.053268,94018.0,94010.0,0.053272]
[1735321195381,0.053268,94018.0,94009.0,0.3608]
[1735321195585,0.053268,94018.0,94015.0,0.053269]
[1735321195778,0.36232,94025.0,94015.0,0.053269]
[1735321195985,0.3608,94025.0,94015.0,0.053269]
[1735321196983,0.3608,94025.0,94016.0,0.053269]
[1735321197379,0.001,94018.0,94017.0,0.053268]
[1735321198083,0.3608,94025.0,94017.0,0.053268]
[1735321198388,0.3638,94025.0,94010.0,1.50914383]
[1735321198688,0.3618,94025.0,94010.0,0.00914383]
[1735321198892,0.001,94018.0,94017.0,0.053268]
[1735321199182,0.001,94018.0,94009.0,0.3608]
[1735321199183,0.053271,94014.0,94009.0,0.3608]
[1735321199388,0.053271,94014.0,94009.0,0.36978679]
[1735321200175,0.002,94018.0,94009.0,0.00898679]
[1735321200380,0.002,94018.0,93993.0,0.0791]
[1735321200381,0.001,94018.0,94008.0,0.053273]
[1735321200584,0.001,94018.0,94010.0,0.001]
[1735321201184,0.001,94018.0,94009.0,0.3608]
[1735321201386,0.001,94018.0,94017.0,0.3608]
[1735321201584,0.053267,94020.0,94009.0,0.3618]
[1735321201785,0.053267,94020.0,94009.0,0.3638]
[1735321201987,0.053267,94020.0,94011.0,0.053272]
[1735321202193,0.053268,94019.0,94011.0,0.053272]
[1735321202380,0.00919054,94025.0,94010.0,0.001]
[1735321202576,0.3608,94028.0,94010.0,0.001]
[1735321202783,0.053272,94011.0,94010.0,0.001]
[1735321203595,0.00933929,94028.0,94010.0,0.001]
[1735321203596,0.053268,94018.0,94010.0,0.001]
[1735321203892,0.053268,94018.0,94009.0,0.3628]
[1735321203893,0.053268,94018.0,94014.0,0.05327]
[1735321204990,0.053268,94018.0,94010.0,0.003]
[1735321204991,0.053264,94025.0,94021.0,0.053266]
[1735321205191,0.37013929,94028.0,94021.0,0.053266]
[1735321205192,0.00152,94028.0,94021.0,0.3608]
[1735321205387,0.16300729,94040.0,94022.0,0.126065]
[1735321205687,0.053263,94027.0,94022.0,0.053265]
[1735321205991,0.053263,94027.0,94024.0,0.053264]
[1735321206194,0.003,94025.0,94024.0,0.053264]
[1735321206688,0.053247,94055.0,94024.0,0.3]
[1735321206894,0.053247,94055.0,94051.0,0.053249]
[1735321207089,0.053247,94055.0,94052.0,1.5]
[1735321207296,0.1015,94068.0,94060.0,0.053244]
[1735321207890,0.1015,94068.0,94065.0,0.3608]
[1735321208291,0.154737,94074.0,94066.0,0.05324]
[1735321208482,0.053237,94073.0,94066.0,0.05324]
[1735321208795,0.009,94068.0,94066.0,0.05324]
[1735321209288,0.003,94068.0,94066.0,0.05324]
[1735321209490,0.1085,94074.0,94066.0,0.05424]
[1735321209692,0.00969395,94097.0,94073.0,0.3608]
[1735321209896,0.1,94100.0,94073.0,0.3608]
[1735321209897,0.053226,94093.0,94085.0,0.3608]
[1735321210593,0.053226,94092.0,94085.0,0.3608]
[1735321210795,0.153221,94100.0,94085.0,0.3608]
[1735321211188,0.053223,94098.0,94085.0,0.3608]
[1735321211895,0.004,94087.0,94085.0,0.3608]
[1735321212097,0.004,94087.0,94085.0,0.414029]
[1735321212789,0.005,94087.0,94085.0,0.3618]
[1735321212995,0.005,94087.0,94085.0,0.3628]
[1735321213391,0.005,94087.0,94086.0,0.053229]
[1735321213593,0.1,94100.0,94099.0,0.053222]
[1735321213794,0.3608,94124.0,94099.0,0.3608]
[1735321214005,0.3608,94141.0,94099.0,0.3608]
[1735321214006,0.00935366,94134.0,94117.0,0.3608]
[1735321214296,0.053199,94140.0,94128.0,0.053205]
[1735321214786,0.00947499,94147.0,94130.0,0.053204]
[1735321214989,0.00159417,94149.0,94133.0,0.053203]
[1735321215299,0.00159417,94149.0,94135.0,0.3608]
[1735321215692,0.00159417,94149.0,94135.0,0.414001]
[1735321215892,0.00159417,94149.0,94140.0,0.3608]
[1735321216289,0.00959417,94149.0,94140.0,0.3608]
[1735321217396,0.00959417,94149.0,94148.0,0.3608]
[1735321217594,0.00159417,94149.0,94148.0,0.3608]
[1735321217800,0.01059417,94149.0,94148.0,0.3608]
[1735321217986,0.009,94149.0,94148.0,0.3608]
[1735321218393,0.3608,94172.0,94148.0,0.3608]
[1735321218694,0.0729,94177.0,94160.0,0.053187]
[1735321218899,0.0729,94177.0,94149.0,1.5]
[1735321219095,0.3608,94168.0,94149.0,1.5]
[1735321219301,0.08252223,94177.0,94148.0,0.3608]
[1735321219502,0.005,94149.0,94148.0,0.414994]
[1735321219802,0.005,94149.0,94148.0,0.054194]
[1735321220000,0.005,94149.0,94140.0,0.3608]
[1735321220195,0.0724,94148.0,94140.0,0.3608]
[1735321220592,0.0724,94148.0,94140.0,0.2401]
[1735321221092,0.0784,94147.0,94140.0,0.2401]
[1735321221406,0.053198,94141.0,94140.0,0.2401]
[1735321221795,0.0784,94147.0,94140.0,0.2401]
[1735321221995,0.00944886,94149.0,94144.0,0.053196]
[1735321222296,0.053192,94152.0,94140.0,0.2421]
[1735321222493,0.053194,94148.0,94140.0,0.2421]
[1735321222801,0.0756,94158.0,94140.0,0.2431]
[1735321222998,0.37038783,94151.0,94142.0,0.053197]
[1735321223398,0.37038783,94151.0,94140.0,0.003]
[1735321223604,0.053196,94145.0,94140.0,0.003]
[1735321223900,0.0796,94144.0,94140.0,0.001]
[1735321224100,0.37038783,94151.0,94140.0,0.001]
[1735321224301,0.05319,94155.0,94143.0,0.413996]
[1735321224904,0.3608,94149.0,94140.0,0.005]
[1735321225096,0.413994,94149.0,94140.0,0.007]
[1735321225497,0.053194,94149.0,94140.0,0.007]
[1735321225696,0.053194,94149.0,94143.0,0.006]
[1735321225998,0.3608,94157.0,94150.0,0.053192]
[1735321226201,0.3608,94157.0,94140.0,0.414999]
[1735321226501,0.054709,94158.0,94144.0,0.053197]
[1735321226701,0.053189,94158.0,94144.0,0.053197]
[1735321227093,0.3608,94150.0,94143.0,0.003]
[1735321227695,0.0110841,94160.0,94144.0,0.3608]
[1735321227895,0.0110841,94160.0,94149.0,0.053194]
[1735321228293,0.3608,94153.0,94144.0,0.003]
[1735321228693,0.3608,94145.0,94143.0,0.006]
[1735321228895,0.3608,94145.0,94143.0,0.002]
[1735321229992,0.05319,94158.0,94143.0,0.002]
[1735321230195,0.05319,94158.0,94150.0,0.053194]
[1735321230902,0.3608,94152.0,94150.0,0.053194]
[1735321231305,0.05319,94158.0,94150.0,0.054194]
[1735321231506,0.05319,94158.0,94150.0,0.056194]
[1735321231805,0.05319,94158.0,94150.0,0.055194]
[1735321231998,0.05319,94158.0,94150.0,0.060194]
[1735321232804,0.3608,94152.0,94150.0,0.060194]
[1735321233210,0.05319,94158.0,94150.0,0.058194]
[1735321233505,0.053193,94151.0,94150.0,0.007]
[1735321234109,0.053193,94151.0,94150.0,0.004]
[1735321234507,0.053193,94151.0,94141.0,0.053199]
[1735321234703,0.053193,94151.0,94150.0,0.001]
[1735321234910,0.053193,94151.0,94150.0,0.003]
[1735321235209,0.053193,94151.0,94150.0,0.006]
[1735321236098,0.413993,94151.0,94150.0,0.006]
[1735321236501,0.0118938,94160.0,94158.0,0.053189]
[1735321237204,0.0118938,94160.0,94159.0,0.3608]
[1735321237804,0.0118938,94160.0,94159.0,0.4349]
[1735321238009,0.0118938,94160.0,94159.0,1.9349]
[1735321238815,0.3608,94185.0,94176.0,0.053179]
[1735321238998,0.37070618,94185.0,94177.0,0.053178]
[1735321239202,0.3608,94185.0,94177.0,0.053178]
[1735321239409,0.3608,94185.0,94171.0,0.3608]
[1735321239609,0.3608,94185.0,94178.0,0.053178]
[1735321239805,0.3608,94185.0,94179.0,0.31713207]
[1735321240015,0.053172,94189.0,94179.0,0.31713207]
[1735321240310,0.053175,94184.0,94179.0,0.31713207]
[1735321240514,0.053176,94182.0,94179.0,0.31713207]
[1735321240712,0.053177,94180.0,94179.0,0.31713207]
[1735321241008,0.053177,94180.0,94179.0,0.38055848]
[1735321242004,0.053177,94180.0,94179.0,0.43903609]
[1735321243014,0.053177,94180.0,94179.0,0.31730819]
[1735321243413,0.054177,94180.0,94179.0,0.31730819]
[1735321244110,0.054177,94180.0,94176.0,0.38055848]
[1735321244310,0.3608,94187.0,94176.0,0.38055848]
[1735321244707,0.3608,94187.0,94178.0,0.38055848]
[1735321244910,0.053177,94180.0,94178.0,0.38055848]
[1735321245609,0.053177,94180.0,94179.0,0.43964407]
[1735321246009,0.054177,94180.0,94179.0,0.43964407]
[1735321246210,0.054177,94180.0,94179.0,0.37975674]
[1735321246510,0.053183,94171.0,94169.0,0.3608]
[1735321246704,0.3608,94178.0,94169.0,0.3608]
[1735321246909,0.0769,94170.0,94169.0,0.3608]
[1735321247514,0.0769,94170.0,94169.0,0.3618]
[1735321249209,0.0779,94170.0,94169.0,0.3608]
[1735321249609,0.0779,94170.0,94169.0,0.3618]
[1735321250010,0.0769,94170.0,94169.0,0.3618]
[1735321250311,0.0769,94170.0,94169.0,0.001]
[1735321251023,0.3608,94178.0,94169.0,0.053183]
[1735321251315,0.3608,94178.0,94173.0,0.053181]
[1735321252115,0.3608,94178.0,94159.0,0.3608]
[1735321252324,0.3608,94178.0,94175.0,0.05318]
[1735321253609,0.3608,94178.0,94175.0,0.001]
[1735321253810,0.3608,94178.0,94176.0,0.30746147]
[1735321254815,0.3608,94178.0,94176.0,0.053179]
[1735321255319,0.3608,94178.0,94176.0,0.001]
[1735321255622,0.3608,94178.0,94176.0,0.054179]
[1735321255832,0.3608,94178.0,94177.0,0.19082003]
[1735321256123,0.3608,94178.0,94177.0,0.13093249]
[1735321256915,0.3608,94178.0,94176.0,0.056179]
[1735321257120,0.3608,94178.0,94176.0,0.054179]
[1735321257307,0.3608,94178.0,94177.0,0.002]
[1735321258325,0.3608,94178.0,94177.0,0.003]
[1735321258526,0.053169,94195.0,94187.0,0.053173]
[1735321258724,0.053169,94195.0,94189.0,0.053171]